bitfinex-derivatives/quotes_SOLF0:USTF0_20251228
["timestamp","ask_amount","ask_price","bid_price","bid_amount"]
[1766890154247,4.43036197,124.18,124.15,1.55550501]
[1766890159151,4.44,124.2,124.17,1.49412674]
[1766890159454,4.44,124.2,124.18,1.49412674]
[1766890160257,4.49647299,124.2,124.18,1.54866714]
[1766890165360,4.49647299,124.2,124.18,0.0545404]
[1766890167563,4.49647299,124.2,124.18,0.0045404]
[1766890202789,11.1404,124.22,124.18,0.0045404]
[1766890203193,3.89,124.21,124.18,0.0045404]
[1766890203994,3.94821595,124.21,124.18,0.0045404]
[1766890204493,0.05821595,124.21,124.18,0.0045404]
[1766890204694,9.82800223,124.23,124.18,0.0045404]
[1766890204898,3.89,124.23,124.18,0.0045404]
[1766890205295,3.89,124.22,124.18,0.0045404]
[1766890205599,0.06044684,124.21,124.18,0.0045404]
[1766890207811,3.95044684,124.21,124.18,0.0045404]
[1766890304801,0.06044684,124.21,124.18,0.0045404]
[1766890306808,3.67044684,124.21,124.18,0.0045404]
[1766890354934,3.3,124.23,124.19,1.49498774]
[1766890355142,3.3,124.23,124.18,5.06952814]
[1766890355839,3.3,124.21,124.18,0.0045404]
[1766890384254,0.05366479,124.22,124.19,1.49498774]
[1766890385053,3.65366479,124.22,124.19,1.49498774]
[1766890387452,3.65366479,124.22,124.18,1.49952814]
[1766890388254,3.65366479,124.22,124.18,0.0045404]
[1766890413180,4.94498774,124.21,124.18,0.0045404]
[1766890413372,4.94498774,124.2,124.18,0.0045404]
[1766890416079,3.45,124.2,124.18,0.0045404]
[1766890419684,3.45,124.18,124.12,3.56]
[1766890420687,0.05324716,124.16,124.14,0.0520649]
[1766890449817,3.45,124.18,124.14,0.0520649]
[1766890450623,0.0577365,124.17,124.14,0.0520649]
[1766890456126,3.36,124.2,124.14,3.2920649]
[1766890457423,0.05083236,124.18,124.14,3.2920649]
[1766890477941,0.05083236,124.18,124.14,4.78761557]
[1766890480343,0.05083236,124.18,124.14,3.2920649]
[1766890480548,0.05083236,124.18,124.14,4.78761557]
[1766890494464,0.05083236,124.18,124.14,3.2920649]
[1766890494762,0.05083236,124.18,124.14,4.78761557]
[1766890500869,0.05083236,124.18,124.15,3.29]
[1766890502168,0.00083236,124.18,124.15,4.78555067]
[1766890502366,16.4609699,124.22,124.17,4.78555067]
[1766890502670,10.5207,124.22,124.17,4.78555067]
[1766890503369,10.5207,124.22,124.18,1.54749282]
[1766890503770,10.5207,124.22,124.18,0.05194215]
[1766890520374,3.27,124.22,124.18,0.05194215]
[1766890520671,5.07454345,124.24,124.2,3.36]
[1766890520865,5.07454345,124.24,124.21,0.05380359]
[1766890521262,11.00148951,124.24,124.21,0.05380359]
[1766890521465,5.07454345,124.24,124.21,0.05380359]
[1766890521662,6.57009412,124.24,124.21,0.05380359]
[1766890522266,3.23,124.24,124.21,0.05380359]
[1766890530178,99.88555067,124.26,124.21,0.05380359]
[1766890531086,4.72555067,124.26,124.21,0.05380359]
[1766890532984,3.23,124.25,124.21,0.05380359]
[1766890683019,9.13816772,124.25,124.21,0.00380359]
[1766890683219,3.35,124.24,124.21,0.00380359]
[1766890684109,3.40549209,124.24,124.21,0.00380359]
[1766890706026,0.05549209,124.24,124.21,0.00380359]
[1766890706226,3.44,124.26,124.21,3.45380359]
[1766890710946,3.44,124.26,124.22,2.33448608]
[1766890714048,3.44,124.26,124.21,10.70420359]
[1766890721849,3.44,124.26,124.21,7.25420359]
[1766890725452,3.44,124.26,124.21,8.74803255]
[1766890735370,3.44,124.26,124.21,7.25420359]
[1766890735564,3.44,124.26,124.21,8.74803255]
[1766890737371,3.44,124.26,124.21,12.12803255]
[1766890740373,3.44,124.26,124.21,10.63420359]
[1766890740573,3.44,124.26,124.22,1.49382896]
[1766890749979,3.44,124.26,124.21,10.63420359]
[1766890750178,3.44,124.26,124.22,1.49382896]
[1766890750572,3.44,124.26,124.21,10.63420359]
[1766890750777,3.44,124.26,124.22,1.49382896]
[1766890757379,3.44,124.26,124.21,0.00380359]
[1766890757575,3.44,124.26,124.21,1.49763255]
[1766890757880,3.44,124.26,124.22,0.00382896]
[1766890758280,3.44,124.26,124.21,1.49763255]
[1766890759769,3.44,124.26,124.21,0.00380359]
[1766890760580,3.44,124.26,124.21,1.49763255]
[1766890766483,3.44,124.26,124.21,0.00380359]
[1766890766685,3.44,124.26,124.21,1.49763255]
[1766890770789,3.4,124.24,124.21,0.00380359]
[1766890781810,3.4,124.24,124.21,1.49763255]
[1766890782006,3.4,124.24,124.21,0.00380359]
[1766890801722,3.29,124.26,124.21,3.32380359]
[1766890829838,102.3674,124.27,124.21,3.32380359]
[1766890830237,105.6974,124.27,124.21,3.32380359]
[1766890833048,3.33,124.26,124.21,3.32380359]
[1766890834849,10.578,124.26,124.21,3.32380359]
[1766890836648,10.5788,124.25,124.21,3.59e-06]
[1766890837548,10.5788,124.25,124.22,0.06007369]
[1766890841262,3.33,124.25,124.22,0.06007369]
[1766890898408,3.33,124.25,124.22,7.369e-05]
[1766890899417,3.38113273,124.25,124.22,7.369e-05]
[1766891024329,3.48,124.24,124.22,7.369e-05]
[1766891025631,3.45,124.23,124.22,7.369e-05]
[1766891028632,3.50113273,124.25,124.22,7.369e-05]
[1766891055454,3.3,124.24,124.22,7.369e-05]
[1766891058145,5.63518533,124.24,124.22,7.369e-05]
[1766891058551,3.3,124.23,124.22,7.369e-05]
[1766891101790,9.23436562,124.25,124.22,7.369e-05]
[1766891101990,0.05113273,124.25,124.22,1.494528]
[1766891102294,0.05113273,124.25,124.22,7.369e-05]
[1766891102490,0.71864373,124.26,124.23,4.97445431]
[1766891103590,0.74080026,124.26,124.23,4.97445431]
[1766891103791,0.74080026,124.26,124.23,3.48]
[1766891105097,0.74080026,124.26,124.22,1.494528]
[1766891106900,0.74080026,124.26,124.22,7.369e-05]
[1766891110304,0.74080026,124.26,124.22,3.48007369]
[1766891132316,0.02215653,124.26,124.22,4.974528]
[1766891133015,95.12,124.3,124.23,4.93445431]
[1766891133219,3.19,124.31,124.25,4.93445431]
[1766891133427,3.19,124.3,124.25,4.93445431]
[1766891133614,3.19,124.3,124.25,3.44]
[1766891134124,3.19,124.3,124.26,0.0568639]
[1766891147534,3.19,124.3,124.26,5.08131821]
[1766891147925,3.19,124.3,124.26,3.5868639]
[1766891151439,5.90022287,124.33,124.26,3.5868639]
[1766891152338,5.90022287,124.33,124.26,10.8345639]
[1766891153444,3.22,124.32,124.26,10.8345639]
[1766891159857,3.22,124.32,124.27,3.41]
[1766891169861,3.22,124.34,124.27,3.41]
[1766891170062,3.22,124.34,124.29,0.05460974]
[1766891172461,9.10817316,124.34,124.29,0.05460974]
[1766891172763,3.22,124.33,124.29,0.05460974]
[1766891188375,3.2,124.32,124.29,0.05460974]
[1766891209686,3.2,124.32,124.25,3.23]
[1766891210081,3.25,124.31,124.25,3.23]
[1766891210589,3.25,124.31,124.25,4.72284701]
[1766891210788,0.05274673,124.29,124.27,0.05233717]
[1766891225400,3.30274673,124.29,124.27,0.00233717]
[1766891225607,3.30274673,124.29,124.23,4.72284701]
[1766891226505,4.79559374,124.29,124.25,0.05759594]
[1766891229520,4.74284701,124.28,124.25,0.05759594]
[1766891230619,3.25,124.28,124.25,0.05759594]
[1766891261836,11.4042648,124.29,124.26,1.49284701]
[1766891262032,8.60480976,124.29,124.26,1.49284701]
[1766891262841,8.65900994,124.29,124.26,1.49284701]
[1766891268749,8.65900994,124.29,124.25,4.95044295]
[1766891269950,8.65900994,124.29,124.25,3.45759594]
[1766891275450,3.2,124.28,124.25,0.05759594]
[1766891282656,3.2,124.28,124.21,10.7007]
[1766891283754,0.060792,124.26,124.23,0.05582195]
[1766891300173,3.370792,124.26,124.23,0.05582195]
[1766891331992,3.370792,124.26,124.23,1.54927622]
[1766891352714,3.370792,124.26,124.23,0.05582195]
[1766891353005,3.370792,124.26,124.23,1.54927622]
[1766891362919,3.370792,124.26,124.23,0.05582195]
[1766891363917,3.370792,124.26,124.23,1.54927622]
[1766891365620,0.060792,124.26,124.23,4.88927622]
[1766891366120,3.390792,124.26,124.23,1.54927622]
[1766891367321,3.390792,124.26,124.23,0.05582195]
[1766891368915,3.390792,124.26,124.2,1.49345427]
[1766891369922,3.390792,124.26,124.22,0.05610457]
[1766891380533,3.390792,124.26,124.22,1.54955884]
[1766891380732,3.390792,124.26,124.22,0.05610457]
[1766891412270,9.32866583,124.26,124.22,0.05610457]
[1766891412772,3.35,124.25,124.22,0.05610457]
[1766891418373,3.35,124.25,124.19,7.2518]
[1766891418671,3.35,124.25,124.18,3.28]
[1766891419072,3.37,124.24,124.18,3.28]
[1766891419571,3.43018849,124.22,124.16,18.31751966]
[1766891419874,3.43018849,124.22,124.16,3.28]
[1766891420565,3.43018849,124.22,124.18,0.05698574]
[1766891435776,0.06018849,124.22,124.18,3.33698574]
[1766891447485,0.06018849,124.22,124.18,10.58938574]
[1766891457796,0.06018849,124.22,124.18,3.33698574]
[1766891469812,0.06018849,124.22,124.18,4.83161422]
[1766891476613,0.06018849,124.22,124.19,3.37]
[1766891479017,3.41018849,124.22,124.18,0.05698574]
[1766891479215,3.35,124.21,124.15,3.37]
[1766891479520,3.35,124.21,124.16,3.37]
[1766891480220,0.06132221,124.2,124.17,0.05484592]
[1766891492333,3.41132221,124.2,124.13,3.37]
[1766891492533,3.35,124.19,124.13,4.86462848]
[1766891492832,3.35,124.19,124.14,3.37]
[1766891493034,4.84462848,124.19,124.14,3.37]
[1766891493533,0.05161272,124.18,124.15,0.05438746]
[1766891502740,12.1490412,124.18,124.12,3.37]
[1766891502940,12.1490412,124.18,124.13,3.37]
[1766891503338,10.65441272,124.18,124.13,3.37]
[1766891503848,10.65441272,124.18,124.14,0.05843937]
[1766891506746,0.05161272,124.18,124.14,3.36843937]
[1766891522678,0.05161272,124.18,124.12,2.33730164]
[1766891522679,3.39,124.17,124.12,3.46]
[1766891523376,12.98120164,124.16,124.1,3.46]
[1766891523778,0.06125071,124.14,124.12,0.05797887]
[1766891524473,0.06125071,124.14,124.1,3.46]
[1766891525564,0.06125071,124.14,124.11,3.51589352]
[1766891527870,3.45125071,124.14,124.11,0.05589352]
[1766891531670,0.06125071,124.14,124.11,0.05589352]
[1766891536582,0.06125071,124.14,124.11,3.30589352]
[1766891551902,0.00125071,124.14,124.11,3.30589352]
[1766891568223,0.00125071,124.14,124.11,0.05589352]
[1766891573128,0.00125071,124.14,124.11,3.49589352]
[1766891584035,6.16915535,124.19,124.12,3.44]
[1766891584335,7.66581855,124.19,124.13,3.44]
[1766891584535,5.93758078,124.18,124.13,3.44]
[1766891585236,0.05295999,124.17,124.14,0.05232768]
[1766891590650,1.54962319,124.17,124.14,0.05232768]
[1766891597457,0.05295999,124.17,124.14,0.05232768]
[1766891609067,1.4966632,124.16,124.11,3.29]
[1766891610166,1.4966632,124.16,124.12,0.05311236]
[1766891621460,4.6766632,124.16,124.12,0.05311236]
[1766891621668,3.18,124.15,124.12,0.05311236]
[1766891641493,3.18,124.15,124.08,12.84650116]
[1766891641895,3.18,124.15,124.09,3.25]
[1766891642398,0.06069238,124.13,124.11,0.0509515]
[1766891681336,3.51069238,124.13,124.11,0.0509515]
[1766891681535,3.51069238,124.13,124.09,3.25]
[1766891682434,3.51069238,124.13,124.1,0.05758997]
[1766891688741,3.42,124.12,124.07,3.53]
[1766891689744,0.05410205,124.11,124.08,0.05226044]
[1766891697947,1.55180465,124.11,124.08,0.05226044]
[1766891699147,0.05410205,124.11,124.08,0.05226044]
[1766891700145,3.27,124.1,124.08,0.05226044]
[1766891700349,4.7677026,124.1,124.08,0.05226044]
[1766891701152,0.45048104,124.09,124.08,0.05226044]
[1766891701354,0.45048104,124.09,124.04,3.29]
[1766891701745,3.27,124.12,124.07,3.29]
[1766891702345,0.054953,124.11,124.08,0.03803906]
[1766891714572,1.5526556,124.11,124.08,0.03803906]
[1766891715274,4.8726556,124.11,124.08,0.03803906]
[1766891723477,4.8177026,124.1,124.06,3.22]
[1766891723784,3.32,124.1,124.06,3.22]
[1766891724887,4.8177026,124.1,124.06,3.22]
[1766891726087,3.32,124.1,124.06,3.22]
[1766891733389,4.8177026,124.1,124.04,3.22]
[1766891733590,0.05885958,124.08,124.04,3.22]
[1766891741091,0.05885958,124.08,124.04,4.7177026]
[1766891741390,0.05885958,124.08,124.05,3.22]
[1766891747583,0.05885958,124.08,124.03,98.76]
[1766891749594,0.05885958,124.08,124.04,3.42]
[1766891754696,3.49885958,124.08,124.04,3.42]
[1766891755100,4.99656218,124.08,124.04,3.42]
[1766891756801,3.49885958,124.08,124.04,3.42]
[1766891760700,0.05885958,124.08,124.04,3.42]
[1766891763105,0.05885958,124.08,124.04,5.76117028]
[1766891763404,0.05885958,124.08,124.05,3.42]
[1766891775813,0.05885958,124.08,124.03,100.81117028]
[1766891776919,0.05885958,124.08,124.03,3.23]
[1766891781817,3.50885958,124.08,124.03,3.23]
[1766891818961,0.05885958,124.08,124.03,3.23]
[1766891819164,0.05885958,124.08,124.05,3.5]
[1766891820760,3.34885958,124.08,124.03,3.5]
[1766891835682,3.34885958,124.08,124.03,4.99787667]
[1766891838985,3.34885958,124.08,124.04,3.41]
[1766891839686,3.34885958,124.08,124.04,4.90787667]
[1766891841992,3.34885958,124.08,124.04,3.41]
[1766891842188,3.34885958,124.08,124.04,4.90787667]
[1766891849908,0.05885958,124.08,124.05,3.41]
[1766891850104,0.05885958,124.08,124.05,4.90787667]
[1766891851007,10.4863,124.12,124.06,4.90787667]
[1766891851504,3.23,124.11,124.06,4.90787667]
[1766891851900,9.11851613,124.11,124.06,4.90787667]
[1766891852108,0.05771576,124.1,124.07,0.05490835]
[1766891864017,4.94559243,124.1,124.07,0.05490835]
[1766891864219,3.39,124.09,124.04,3.43]
[1766891865615,10.648,124.09,124.04,3.43]
[1766891865819,12.14587667,124.09,124.04,3.43]
[1766891867319,10.648,124.09,124.04,3.43]
[1766891867507,12.14587667,124.09,124.04,3.43]
[1766891868620,10.648,124.09,124.04,3.43]
[1766891870321,3.39,124.09,124.04,3.43]
[1766891877229,0.05771576,124.1,124.04,3.43]
[1766891877832,0.05771576,124.1,124.04,4.92787667]
[1766891878030,0.05771576,124.1,124.05,3.19]
[1766891878631,3.57771576,124.1,124.05,3.19]
[1766891902750,10.83501576,124.1,124.05,3.19]
[1766891936283,3.43,124.08,124.01,3.3]
[1766891936490,3.48603573,124.06,124.01,3.3]
[1766891938200,3.43,124.05,123.99,20.2587459]
[1766891938388,0.05557102,124.03,123.99,5.22122624]
[1766891938694,0.05557102,124.03,123.99,1.92122624]
[1766891938695,3.48557102,124.03,123.99,1.92122624]
[1766891938896,3.48557102,124.03,123.97,3.3]
[1766891941998,3.48557102,124.03,123.98,3.3]
[1766891944201,0.05557102,124.03,123.98,4.79946321]
[1766891944402,0.05557102,124.03,123.99,3.3]
[1766891951105,3.48557102,124.03,123.99,3.3]
[1766891964615,0.05557102,124.03,123.99,3.3]
[1766891970818,3.44,124.06,124.0,3.43]
[1766891971024,3.44,124.06,124.0,4.92946321]
[1766891971617,0.05311574,124.04,124.02,0.05924633]
[1766891972724,3.44,124.06,124.02,0.05924633]
[1766891973625,0.06148678,124.05,124.02,0.05924633]
[1766891989851,0.06148678,124.05,124.01,3.43]
[1766891989852,3.26,124.04,123.99,3.28]
[1766891990158,4.75946321,124.04,123.99,3.28]
[1766891990544,1.49946321,124.02,123.99,3.28]
[1766891990845,4.75946321,124.03,123.99,3.28]
[1766891991049,0.05082729,124.02,123.99,3.3308193]
[1766892053509,2.34304357,124.05,123.99,3.3308193]
[1766892053510,7.26,124.06,124.0,3.29]
[1766892053705,5.94925929,124.05,124.0,3.29]
[1766892054410,0.05851142,124.04,124.01,0.055464]
[1766892057611,0.05851142,124.04,124.01,3.345464]
[1766892058616,7.26,124.06,124.01,3.345464]
[1766892059517,0.05377898,124.05,124.01,3.345464]
[1766892062214,0.00377898,124.05,124.01,3.345464]
[1766892063012,5.9296675,124.08,124.02,3.29]
[1766892063213,5.63117116,124.09,124.02,3.29]
[1766892063915,7.12948337,124.09,124.02,4.78831221]
[1766892064111,0.05378696,124.07,124.04,3.34087969]
[1766892067415,0.00378696,124.07,124.04,3.34087969]
[1766892074233,4.75209917,124.07,124.02,3.29]
[1766892075220,4.75209917,124.07,124.03,0.05930093]
[1766892076721,12.01129917,124.07,124.03,0.05930093]
[1766892076925,4.79831221,124.06,124.0,3.32]
[1766892078020,0.06133646,124.04,124.02,0.05316618]
[1766892078225,0.00133646,124.04,124.02,3.37316618]
[1766892120464,12.09,124.08,124.03,3.41]
[1766892121572,0.05567315,124.07,124.03,3.41]
[1766892122069,12.09,124.08,124.03,4.90831221]
[1766892122275,12.09,124.08,124.05,3.41]
[1766892123163,12.1416432,124.08,124.05,3.47173461]
[1766892133484,0.0516432,124.08,124.05,3.47173461]
[1766892135182,0.0516432,124.08,124.05,0.06173461]
[1766892173308,3.29,124.06,124.01,3.33]
[1766892174511,0.05764021,124.05,124.02,0.05774748]
[1766892183025,10.29764021,124.05,124.02,0.05774748]
[1766892183426,3.29,124.08,124.02,3.38774748]
[1766892184330,0.05312661,124.06,124.02,3.38774748]
[1766892187931,0.05312661,124.06,124.03,1.49820567]
[1766892189326,3.34312661,124.06,124.02,0.05774748]
[1766892189526,4.78820567,124.05,123.99,1.49820567]
[1766892190628,0.05646815,124.03,124.01,0.06004985]
[1766892192226,3.34646815,124.03,123.97,1.49820567]
[1766892193431,3.34646815,124.03,123.99,0.05364224]
[1766892198926,3.34646815,124.03,123.99,1.55184791]
[1766892200940,3.34646815,124.03,123.99,0.05364224]
[1766892204442,3.34646815,124.03,123.99,1.55184791]
[1766892221050,3.34646815,124.03,124.0,1.49820567]
[1766892221256,0.05646815,124.03,124.0,1.49820567]
[1766892229157,3.19,124.06,124.01,1.49820567]
[1766892229351,3.19,124.06,124.02,1.49820567]
[1766892230159,0.06105716,124.05,124.03,0.05150057]
[1766892230354,0.06105716,124.05,124.01,1.49820567]
[1766892230559,0.06105716,124.05,124.03,0.05884538]
[1766892263985,9.23,124.06,124.03,0.05884538]
[1766892264178,7.2575,124.1,124.03,0.05884538]
[1766892264378,5.93605272,124.09,124.03,0.05884538]
[1766892264677,7.2575,124.1,124.03,0.05884538]
[1766892265078,0.06003881,124.08,124.03,0.05884538]
[1766892265387,0.06003881,124.08,124.04,0.05255411]
[1766892272996,0.06003881,124.08,124.04,2.39415354]
[1766892285398,0.06003881,124.08,124.04,9.65475354]
[1766892290004,0.06003881,124.08,124.04,7.31315411]
[1766892290205,0.06003881,124.08,124.04,9.65475354]
[1766892292903,0.06003881,124.08,124.05,7.2601]
[1766892293511,3.21,124.12,124.06,9.60089943]
[1766892293903,3.21,124.12,124.06,7.2593]
[1766892294511,0.05719607,124.1,124.08,0.05460067]
[1766892295105,3.26719607,124.1,124.04,7.2604]
[1766892295409,3.26719607,124.1,124.04,102.5004]
[1766892296202,3.26719607,124.1,124.06,0.05218843]
[1766892302916,3.26719607,124.1,124.03,97.58159943]
[1766892303809,3.26719607,124.1,124.05,0.05337835]
[1766892307922,4.76541735,124.1,124.05,0.05337835]
[1766892308116,3.21,124.09,124.05,0.05337835]
[1766892316933,3.21,124.09,124.05,1.55159963]
[1766892332449,3.21,124.09,124.05,0.05337835]
[1766892332642,3.21,124.09,124.05,1.55159963]
[1766892346761,12.61,124.09,124.05,1.55159963]
[1766892350763,3.31,124.08,124.05,0.05337835]
[1766892351062,3.31,124.08,124.02,1.49822128]
[1766892351264,3.31,124.08,124.03,1.49822128]
[1766892351955,3.36725249,124.07,124.04,0.05305563]
[1766892352862,3.36725249,124.07,124.04,1.55127691]
[1766892358460,3.36725249,124.07,124.04,0.05305563]
[1766892358765,3.36725249,124.07,124.04,1.55127691]
[1766892359167,3.36725249,124.07,124.04,0.05305563]
[1766892362864,13.85725249,124.07,124.04,0.05305563]
[1766892395206,3.33,124.06,124.04,0.05305563]
[1766892406419,3.33,124.06,124.04,0.00305563]
[1766892436540,3.33,124.06,124.01,7.2621]
[1766892436842,3.33,124.06,124.03,1.49821353]
[1766892437042,3.33,124.06,124.02,1.49821353]
[1766892437646,3.33,124.06,124.03,0.06061297]
[1766892444543,3.33,124.06,124.03,1.5588265]
[1766892447848,3.33,124.06,124.03,0.00061297]
[1766892450548,3.33,124.06,124.01,1.49821353]
[1766892451947,3.33,124.06,124.0,1.49821353]
[1766892452553,0.05111722,124.04,124.0,1.49821353]
[1766892452754,3.27111722,124.04,124.0,1.49821353]
[1766892457759,3.27111722,124.04,123.99,1.49821353]
[1766892460552,3.27111722,124.04,124.0,1.49821353]
[1766892464363,3.27111722,124.04,123.98,95.26]
[1766892464663,3.27111722,124.04,124.01,1.49821353]
[1766892465863,3.27111722,124.04,124.0,1.49821353]
[1766892472261,3.27111722,124.04,124.01,1.49821353]
[1766892476877,3.27111722,124.04,124.0,1.49821353]
[1766892477277,3.27111722,124.04,123.98,8.6441]
[1766892477576,3.27111722,124.04,124.0,1.49821353]
[1766892479276,3.27111722,124.04,123.98,8.6441]
[1766892479478,3.27111722,124.04,123.98,10.14231353]
[1766892479673,3.27111722,124.04,123.99,1.49821353]
[1766892481085,3.27111722,124.04,123.98,8.6441]
[1766892481277,3.27111722,124.04,123.99,1.49821353]
[1766892481774,3.27111722,124.04,123.98,7.2641]
[1766892482077,3.27111722,124.04,123.98,1.49821353]
[1766892482277,3.39,124.03,123.97,2.8121136]
[1766892482482,3.4508343,124.01,123.97,2.8121136]
[1766892484580,3.4508343,124.01,123.98,1.49821353]
[1766892484973,3.4508343,124.01,123.97,1.31390007]
[1766892485178,3.4508343,124.01,123.98,1.49821353]
[1766892489880,3.4508343,124.01,123.97,1.31390007]
[1766892490088,3.4508343,124.01,123.97,3.65688412]
[1766892491586,3.4508343,124.01,123.96,1.38]
[1766892491781,3.4508343,124.01,123.96,3.72298405]
[1766892496694,3.4508343,124.01,123.96,2.34298405]
[1766892496989,3.4508343,124.01,123.94,106.28908405]
[1766892498392,3.4508343,124.01,123.94,10.98908405]
[1766892503988,3.4508343,124.01,123.94,8.6461]
[1766892504195,3.4508343,124.01,123.94,10.98908405]
[1766892505096,3.4508343,124.01,123.94,106.28908405]
[1766892506901,3.4508343,124.01,123.95,1.38]
[1766892507701,3.41,124.0,123.94,95.3]
[1766892507902,3.41,124.0,123.93,1.38]
[1766892508797,3.41,124.0,123.95,0.05545454]
[1766892509901,10.6733,124.0,123.95,0.05545454]
[1766892510200,7.2633,124.0,123.95,0.05545454]
[1766892510498,0.30214114,123.99,123.95,0.05545454]
[1766892511002,0.05458708,123.98,123.95,0.05545454]
[1766892520112,0.05458708,123.98,123.95,5.72843859]
[1766892520408,2.84,124.01,123.95,5.72843859]
[1766892520601,2.84,124.01,123.96,3.33]
[1766892521207,0.05273499,124.0,123.96,3.33]
[1766892570645,0.00273499,124.0,123.96,3.33]
[1766892571146,0.00273499,124.0,123.97,3.39]
[1766892582852,2.89,124.04,123.98,3.39]
[1766892583043,1.5000622,124.03,123.98,3.39]
[1766892583955,0.05277558,124.02,123.99,0.06021142]
[1766892601171,1.5000622,124.06,124.0,3.28]
[1766892601466,6.59754545,124.07,124.01,3.28]
[1766892601766,1.5000622,124.1,124.04,3.28]
[1766892601971,10.34864883,124.1,124.05,3.28]
[1766892602157,4.4400622,124.1,124.05,3.28]
[1766892602363,95.3,124.11,124.06,3.33704568]
[1766892603070,95.3,124.11,124.07,3.28]
[1766892603372,0.0511111,124.1,124.07,3.28]
[1766892617278,0.0511111,124.1,124.06,0.05704568]
[1766892617580,0.0511111,124.1,124.06,3.57704568]
[1766892618387,2.39115533,124.1,124.06,3.57704568]
[1766892619787,0.0511111,124.1,124.06,3.57704568]
[1766892636012,0.0011111,124.1,124.06,3.57704568]
[1766892673928,1.49769224,124.09,124.06,0.05704568]
[1766892674134,1.49769224,124.07,124.02,3.53]
[1766892674334,1.49769224,124.06,124.02,3.53]
[1766892675141,0.00175648,124.05,124.03,3.5462289]
[1766892678735,0.00175648,124.05,124.03,5.04392114]
[1766892678933,0.00175648,124.05,124.04,3.49]
[1766892694258,7.258,124.09,124.04,3.49]
[1766892694451,11.86479224,124.11,124.05,3.49]
[1766892694759,10.3671,124.11,124.06,3.49]
[1766892695268,0.05385787,124.1,124.07,0.05725917]
[1766892698369,0.05385787,124.1,124.07,3.54725917]
[1766892719892,0.00385787,124.1,124.07,3.54725917]
[1766892720293,8.75409224,124.12,124.07,3.54725917]
[1766892720294,7.2564,124.12,124.07,3.54725917]
[1766892721294,0.05978972,124.11,124.07,3.54725917]
[1766892739101,98.37,124.13,124.07,3.54725917]
[1766892740212,0.05438794,124.11,124.07,3.54725917]
[1766892783557,0.00438794,124.11,124.07,3.54725917]
[1766892824000,0.00438794,124.11,124.07,10.80615917]
[1766892824193,0.00438794,124.11,124.08,3.37]
[1766892843314,10.03592489,124.19,124.09,1.49729537]
[1766892843513,1.49729537,124.17,124.11,3.42]
[1766892843815,1.49729537,124.17,124.12,3.42]
[1766892844317,0.05170617,124.16,124.12,3.42]
[1766892844717,1.49729537,124.13,124.1,3.42]
[1766892845506,1.55759568,124.13,124.1,3.4784465]
[1766892846202,0.06030031,124.13,124.1,3.4784465]
[1766892856032,0.06030031,124.13,124.12,3.31]
[1766893004949,3.38030031,124.13,124.05,3.52]
[1766893005149,3.32,124.11,124.05,3.52]
[1766893005845,0.0606568,124.09,124.07,0.05699911]
[1766893010450,0.0006568,124.09,124.07,3.57699911]
[1766893011847,3.32,124.13,124.07,3.57699911]
[1766893012933,0.05795131,124.11,124.07,3.57699911]
[1766893055283,4.81532246,124.11,124.07,0.05699911]
[1766893055586,4.75737115,124.09,124.03,3.42]
[1766893056382,0.06155688,124.07,124.05,0.06098627]
[1766893056582,0.06155688,124.07,124.04,2.3695823]
[1766893057587,0.06155688,124.07,124.04,2.42649138]
[1766893062189,0.00155688,124.07,124.04,3.92386253]
[1766893062397,0.00155688,124.07,124.05,3.5]
[1766893126957,0.00155688,124.07,124.04,0.05690908]
[1766893128958,0.00155688,124.07,124.05,3.41]
[1766893150584,0.00078166,124.09,124.05,3.41]
[1766893151286,7.2574,124.1,124.05,3.41]
[1766893151583,0.05306529,124.09,124.05,3.41]
[1766893162093,0.00306529,124.09,124.05,3.41]
[1766893166193,0.00306529,124.09,124.07,3.21]
[1766893166395,0.00306529,124.09,124.07,3.26532438]
[1766893168095,0.00306529,124.09,124.07,4.76287434]
[1766893168296,0.00306529,124.09,124.08,3.21]
[1766893169603,1.49754996,124.13,124.08,3.21]
[1766893170689,0.05890535,124.12,124.08,3.21]
[1766893176696,1.49754996,124.11,124.07,0.05532438]
[1766893176904,1.49754996,124.11,124.07,3.26532438]